[Event "*** SCC Grand Prix: Titled Tuesday Blitz"]
[Site "Chess.com"]
[Date "2020.08.25"]
[Round "5"]
[White "catzapto"]
[Black "Keures"]
[Result "0-1"]
[WhiteElo "2045"]
[BlackElo "2291"]
[TimeControl "180+1"]
[EndTime "10:57:43 PDT"]
[Termination "Keures won by resignation"]

1. e4 {[%clk 0:03:00.9]} 1... e6 {[%clk 0:02:59.1]} 2. d4 {[%clk 0:03:00.3]}
2... d5 {[%clk 0:03:00]} 3. Nd2 {[%clk 0:03:00.7]} 3... Nf6 {[%clk 0:02:59.6]}
4. e5 {[%clk 0:03:00.7]} 4... Ne4 {[%clk 0:02:58.6]} 5. Bd3 {[%clk 0:02:52.7]}
5... Nxd2 {[%clk 0:02:58.3]} 6. Bxd2 {[%clk 0:02:52.3]} 6... c5 {[%clk
0:02:58.6]} 7. c3 {[%clk 0:02:44.1]} 7... Qb6 {[%clk 0:02:57.9]} 8. Qb3 {[%clk
0:02:38.9]} 8... c4 {[%clk 0:02:57.9]} 9. Qxb6 {[%clk 0:02:38.9]} 9... axb6
{[%clk 0:02:58.8]} 10. Bb1 {[%clk 0:02:38.1]} 10... b5 {[%clk 0:02:56.7]} 11. f4
{[%clk 0:02:37.4]} 11... Nc6 {[%clk 0:02:52]} 12. Nf3 {[%clk 0:02:36.3]} 12...
b4 {[%clk 0:02:50]} 13. O-O {[%clk 0:02:36.2]} 13... g6 {[%clk 0:02:38.2]} 14.
g4 {[%clk 0:02:32.1]} 14... h5 {[%clk 0:02:36.2]} 15. h3 {[%clk 0:02:26.9]}
15... hxg4 {[%clk 0:02:35.1]} 16. hxg4 {[%clk 0:02:27.8]} 16... b3 {[%clk
0:02:13.5]} 17. a3 {[%clk 0:02:23.7]} 17... Ne7 {[%clk 0:02:10.3]} 18. Kg2
{[%clk 0:02:14.7]} 18... Bd7 {[%clk 0:02:08.4]} 19. Rh1 {[%clk 0:01:59.2]} 19...
Rxh1 {[%clk 0:02:07.4]} 20. Kxh1 {[%clk 0:01:59.1]} 20... Bg7 {[%clk 0:01:49.5]}
21. Nh4 {[%clk 0:01:54]} 21... Bh6 {[%clk 0:01:44.5]} 22. Kg2 {[%clk 0:01:27.2]}
22... Kf8 {[%clk 0:01:41.7]} 23. Kf3 {[%clk 0:01:04.8]} 23... Kg8 {[%clk
0:01:41.3]} 24. g5 {[%clk 0:00:57.1]} 24... Bg7 {[%clk 0:01:32.5]} 25. Kg4
{[%clk 0:00:52.7]} 25... Kh7 {[%clk 0:01:31.3]} 26. Be1 {[%clk 0:00:52.2]} 26...
Bf8 {[%clk 0:01:28.7]} 27. Bd2 {[%clk 0:00:48.6]} 27... b5 {[%clk 0:01:28]} 28.
Nf3 {[%clk 0:00:40.3]} 28... Nc6 {[%clk 0:01:26.1]} 29. Ne1 {[%clk 0:00:33.1]}
29... Be7 {[%clk 0:01:15.6]} 30. Nf3 {[%clk 0:00:23.4]} 30... Kg7 {[%clk
0:01:15.2]} 31. Nh4 {[%clk 0:00:21.6]} 31... b4 {[%clk 0:01:05.6]} 32. cxb4
{[%clk 0:00:21.7]} 32... Bxb4 {[%clk 0:01:02.7]} 33. Bxb4 {[%clk 0:00:19.6]}
33... Nxb4 {[%clk 0:01:03]} 34. Ng2 {[%clk 0:00:17.2]} 34... Nc6 {[%clk
0:01:02.3]} 35. f5 {[%clk 0:00:14.3]} 35... gxf5+ {[%clk 0:01:01.8]} 36. Kf4
{[%clk 0:00:13.8]} 36... Nxd4 {[%clk 0:01:01.8]} 37. Ne3 {[%clk 0:00:12.4]}
37... Rh8 {[%clk 0:00:56.1]} 38. Bxf5 {[%clk 0:00:11.2]} 38... Nxf5 {[%clk
0:00:55.1]} 39. Ng4 {[%clk 0:00:11]} 39... Rh4 {[%clk 0:00:48.7]} 40. a4 {[%clk
0:00:10]} 40... Ne3 {[%clk 0:00:48.4]} 41. Kf3 {[%clk 0:00:08.6]} 41... Nxg4
{[%clk 0:00:45.3]} 42. a5 {[%clk 0:00:09.5]} 42... Nxe5+ {[%clk 0:00:45.4]} 43.
Kg3 {[%clk 0:00:09.3]} 43... Rh8 {[%clk 0:00:45]} 44. Kf4 {[%clk 0:00:08.6]}
44... Nd3+ {[%clk 0:00:44.4]} 45. Ke3 {[%clk 0:00:08.7]} 45... Ra8 {[%clk
0:00:44.2]} 46. Kd4 {[%clk 0:00:08.4]} 46... Nxb2 {[%clk 0:00:43.7]} 47. Kc5
{[%clk 0:00:08.6]} 47... c3 {[%clk 0:00:43.2]} 48. Kd6 {[%clk 0:00:08]} 48... c2
{[%clk 0:00:43.5]} 49. Kxd7 {[%clk 0:00:08.2]} 49... Nc4 {[%clk 0:00:43.6]} 50.
a6 {[%clk 0:00:05.1]} 50... b2 {[%clk 0:00:43.2]} 51. Rg1 {[%clk 0:00:04.3]}
51... c1=Q {[%clk 0:00:42.4]} 52. g6 {[%clk 0:00:04.8]} 52... Qxg1 {[%clk
0:00:41.8]} 0-1

[Event "*** SCC Grand Prix: Titled Tuesday Blitz"]
[Site "Chess.com"]
[Date "2020.08.25"]
[Round "5"]
[White "LiemLe"]
[Black "MarcoRiehle"]
[Result "1-0"]
[WhiteElo "2936"]
[BlackElo "2729"]
[TimeControl "180+1"]
[EndTime "10:57:44 PDT"]
[Termination "LiemLe won by resignation"]

1. d4 {[%clk 0:03:00.9]} 1... d5 {[%clk 0:02:58.6]} 2. Bf4 {[%clk 0:02:59.4]}
2... e6 {[%clk 0:02:58.1]} 3. e3 {[%clk 0:02:59.6]} 3... Bd6 {[%clk 0:02:57.3]}
4. Bxd6 {[%clk 0:02:57.1]} 4... Qxd6 {[%clk 0:02:58.1]} 5. c4 {[%clk 0:02:52.3]}
5... Nf6 {[%clk 0:02:55.7]} 6. Nc3 {[%clk 0:02:51.8]} 6... O-O {[%clk
0:02:55.2]} 7. Nf3 {[%clk 0:02:51.7]} 7... a6 {[%clk 0:02:53.2]} 8. Rc1 {[%clk
0:02:50.7]} 8... dxc4 {[%clk 0:02:52.3]} 9. Bxc4 {[%clk 0:02:51.6]} 9... b5
{[%clk 0:02:52.7]} 10. Bd3 {[%clk 0:02:40.4]} 10... Bb7 {[%clk 0:02:50.4]} 11.
O-O {[%clk 0:02:35.8]} 11... Nbd7 {[%clk 0:02:50.1]} 12. Ng5 {[%clk 0:02:22]}
12... Rac8 {[%clk 0:02:31.1]} 13. Nce4 {[%clk 0:01:54.9]} 13... Qe7 {[%clk
0:02:29.6]} 14. Nxf6+ {[%clk 0:01:32.8]} 14... Nxf6 {[%clk 0:02:26.4]} 15. Qc2
{[%clk 0:01:33.2]} 15... h6 {[%clk 0:02:21.8]} 16. Nh7 {[%clk 0:01:29.2]} 16...
Nxh7 {[%clk 0:02:16.3]} 17. Bxh7+ {[%clk 0:01:30.1]} 17... Kh8 {[%clk
0:02:16.7]} 18. Bd3 {[%clk 0:01:21.8]} 18... f5 {[%clk 0:02:08.2]} 19. Rfe1
{[%clk 0:01:04.6]} 19... Qg5 {[%clk 0:01:54.8]} 20. Bf1 {[%clk 0:01:03.8]} 20...
Rf6 {[%clk 0:01:47.2]} 21. Qc5 {[%clk 0:00:57.8]} 21... Bd5 {[%clk 0:01:28.4]}
22. Qe7 {[%clk 0:00:47.6]} 22... c6 {[%clk 0:01:19.6]} 23. g3 {[%clk 0:00:47.2]}
23... Bxa2 {[%clk 0:01:00.3]} 24. Ra1 {[%clk 0:00:46.1]} 24... Bd5 {[%clk
0:00:59.5]} 25. Rxa6 {[%clk 0:00:46.2]} 25... Qg4 {[%clk 0:00:54.6]} 26. Bg2
{[%clk 0:00:45.3]} 26... Bxg2 {[%clk 0:00:54.4]} 27. Kxg2 {[%clk 0:00:46.2]}
27... Qe4+ {[%clk 0:00:54.7]} 28. Kg1 {[%clk 0:00:43.9]} 28... Qc2 {[%clk
0:00:51.1]} 29. Qd7 {[%clk 0:00:37.8]} 29... Rg8 {[%clk 0:00:44.6]} 30. Rxc6
{[%clk 0:00:35]} 30... Qb3 {[%clk 0:00:45]} 31. Rb6 {[%clk 0:00:33.3]} 31... b4
{[%clk 0:00:44.9]} 32. Qe7 {[%clk 0:00:30.8]} 32... Qxb2 {[%clk 0:00:43.2]} 33.
Qxb4 {[%clk 0:00:30.7]} 33... Qc2 {[%clk 0:00:39.2]} 34. Qc5 {[%clk 0:00:25]}
34... Qe4 {[%clk 0:00:36.5]} 35. Qe5 {[%clk 0:00:23.1]} 35... Rc8 {[%clk
0:00:33.2]} 36. Qxe4 {[%clk 0:00:11.3]} 36... fxe4 {[%clk 0:00:34.1]} 37. Rb5
{[%clk 0:00:11.7]} 37... Rc2 {[%clk 0:00:33.7]} 38. Rf1 {[%clk 0:00:12.2]} 38...
Rf5 {[%clk 0:00:34]} 39. Rxf5 {[%clk 0:00:10.5]} 39... exf5 {[%clk 0:00:34.9]}
40. Ra1 {[%clk 0:00:10.9]} 40... Rd2 {[%clk 0:00:33.3]} 41. h4 {[%clk
0:00:09.3]} 41... Kg8 {[%clk 0:00:27]} 42. Ra5 {[%clk 0:00:08.7]} 42... g6
{[%clk 0:00:26.9]} 43. h5 {[%clk 0:00:09]} 43... Kg7 {[%clk 0:00:26.8]} 44. Ra7+
{[%clk 0:00:08.9]} 44... Kf6 {[%clk 0:00:26.8]} 45. Ra6+ {[%clk 0:00:09.2]}
45... Kg7 {[%clk 0:00:27.2]} 46. Rxg6+ {[%clk 0:00:08.6]} 46... Kf7 {[%clk
0:00:28.1]} 47. Rxh6 {[%clk 0:00:08.4]} 1-0

[Event "*** SCC Grand Prix: Titled Tuesday Blitz"]
[Site "Chess.com"]
[Date "2020.08.25"]
[Round "5"]
[White "1f3_2g41-0"]
[Black "chessfrendz"]
[Result "1-0"]
[WhiteElo "2438"]
[BlackElo "2232"]
[TimeControl "180+1"]
[EndTime "10:57:44 PDT"]
[Termination "1f3_2g41-0 won by resignation"]

1. e4 {[%clk 0:03:00.9]} 1... e5 {[%clk 0:02:58.1]} 2. Nf3 {[%clk 0:03:01.3]}
2... Nc6 {[%clk 0:02:56.8]} 3. Bb5 {[%clk 0:03:01.8]} 3... a6 {[%clk 0:02:55.4]}
4. Ba4 {[%clk 0:03:01.9]} 4... Nf6 {[%clk 0:02:54.7]} 5. O-O {[%clk 0:03:02.4]}
5... Be7 {[%clk 0:02:51]} 6. c3 {[%clk 0:03:02.1]} 6... b5 {[%clk 0:02:50.2]} 7.
Bb3 {[%clk 0:02:58.6]} 7... d6 {[%clk 0:02:50.6]} 8. d4 {[%clk 0:02:57.9]} 8...
O-O {[%clk 0:02:40.8]} 9. h3 {[%clk 0:02:56.2]} 9... Bb7 {[%clk 0:02:36.3]} 10.
Re1 {[%clk 0:02:56]} 10... h6 {[%clk 0:02:26.7]} 11. Nbd2 {[%clk 0:02:52.3]}
11... Re8 {[%clk 0:02:22.4]} 12. Nf1 {[%clk 0:02:49.8]} 12... Bf8 {[%clk
0:02:21.6]} 13. Ng3 {[%clk 0:02:48.6]} 13... Na5 {[%clk 0:02:15.6]} 14. Bc2
{[%clk 0:02:36.5]} 14... g6 {[%clk 0:02:13.9]} 15. b3 {[%clk 0:02:28.1]} 15...
Nc6 {[%clk 0:02:04.9]} 16. Be3 {[%clk 0:02:14.7]} 16... Nb8 {[%clk 0:01:50.2]}
17. dxe5 {[%clk 0:02:04.5]} 17... dxe5 {[%clk 0:01:48.1]} 18. Qxd8 {[%clk
0:02:05.1]} 18... Rxd8 {[%clk 0:01:47.3]} 19. Nxe5 {[%clk 0:02:05.8]} 19... Re8
{[%clk 0:01:25.4]} 20. Ng4 {[%clk 0:01:51.1]} 20... Nxg4 {[%clk 0:01:14.3]} 21.
hxg4 {[%clk 0:01:52]} 21... Nd7 {[%clk 0:01:13.5]} 22. f3 {[%clk 0:01:49.1]}
22... Bg7 {[%clk 0:01:11.3]} 23. Bd4 {[%clk 0:01:47.8]} 23... Ne5 {[%clk
0:01:09.1]} 24. Rad1 {[%clk 0:01:42.9]} 24... Rac8 {[%clk 0:01:07.3]} 25. Be3
{[%clk 0:01:30]} 25... Nc6 {[%clk 0:00:57.9]} 26. Ne2 {[%clk 0:01:30]} 26... b4
{[%clk 0:00:52.4]} 27. c4 {[%clk 0:01:27.5]} 27... Rcd8 {[%clk 0:00:51.4]} 28.
Rxd8 {[%clk 0:01:19.6]} 28... Rxd8 {[%clk 0:00:50.5]} 29. Rd1 {[%clk 0:01:20.2]}
29... Rxd1+ {[%clk 0:00:49.9]} 30. Bxd1 {[%clk 0:01:21.1]} 30... a5 {[%clk
0:00:44.3]} 31. Kf2 {[%clk 0:01:20.2]} 31... Bc8 {[%clk 0:00:40.8]} 32. Nf4
{[%clk 0:01:15]} 32... Be6 {[%clk 0:00:38.3]} 33. Nd5 {[%clk 0:01:13.5]} 33...
Bxd5 {[%clk 0:00:37.6]} 34. exd5 {[%clk 0:01:13.6]} 34... Nb8 {[%clk 0:00:21.2]}
35. Be2 {[%clk 0:01:08.9]} 35... Nd7 {[%clk 0:00:20.8]} 36. Bf4 {[%clk
0:01:00.3]} 36... Bd4+ {[%clk 0:00:17.2]} 37. Ke1 {[%clk 0:00:57.9]} 37... Bc3+
{[%clk 0:00:16]} 38. Kd1 {[%clk 0:00:58]} 38... Be5 {[%clk 0:00:15.1]} 39. Be3
{[%clk 0:00:55.2]} 39... g5 {[%clk 0:00:14.1]} 40. Kd2 {[%clk 0:00:55.2]} 40...
Kg7 {[%clk 0:00:13.5]} 41. Kd3 {[%clk 0:00:54.5]} 41... Nf6 {[%clk 0:00:12.6]}
42. Bf2 {[%clk 0:00:51.1]} 42... Bd6 {[%clk 0:00:11.4]} 43. Bd4 {[%clk
0:00:50.5]} 43... Kg6 {[%clk 0:00:10.2]} 44. c5 {[%clk 0:00:49.8]} 44... Bg3
{[%clk 0:00:09]} 45. Bxf6 {[%clk 0:00:49.8]} 45... Kxf6 {[%clk 0:00:08.4]} 46.
Ke4 {[%clk 0:00:50.4]} 46... Ke7 {[%clk 0:00:07.8]} 47. Bc4 {[%clk 0:00:49]}
47... Bf2 {[%clk 0:00:07.7]} 48. d6+ {[%clk 0:00:47.1]} 48... cxd6 {[%clk
0:00:07.8]} 49. cxd6+ {[%clk 0:00:48]} 49... Kxd6 {[%clk 0:00:08]} 50. Bxf7
{[%clk 0:00:48.7]} 50... Bg3 {[%clk 0:00:06.3]} 51. Kf5 {[%clk 0:00:47.3]} 51...
Be5 {[%clk 0:00:05.5]} 52. Kg6 {[%clk 0:00:45.6]} 52... Ke7 {[%clk 0:00:06]} 53.
Bc4 {[%clk 0:00:44.9]} 53... Bf4 {[%clk 0:00:06.2]} 54. Kxh6 {[%clk 0:00:45.2]}
54... Be3 {[%clk 0:00:06.5]} 55. Kg6 {[%clk 0:00:45.2]} 55... Bf4 {[%clk
0:00:07.4]} 56. Kf5 {[%clk 0:00:45.5]} 56... Be3 {[%clk 0:00:08.3]} 57. g3
{[%clk 0:00:45.9]} 57... Bf4 {[%clk 0:00:09.2]} 58. gxf4 {[%clk 0:00:46.2]}
58... gxf4 {[%clk 0:00:08.9]} 59. Kxf4 {[%clk 0:00:47.1]} 1-0

[Event "*** SCC Grand Prix: Titled Tuesday Blitz"]
[Site "Chess.com"]
[Date "2020.08.25"]
[Round "5"]
[White "pastouche06"]
[Black "Fighter008"]
[Result "0-1"]
[WhiteElo "2509"]
[BlackElo "2678"]
[TimeControl "180+1"]
[EndTime "10:57:45 PDT"]
[Termination "Fighter008 won on time"]

1. d4 {[%clk 0:03:00.9]} 1... Nf6 {[%clk 0:02:56.3]} 2. c4 {[%clk 0:03:00.5]}
2... g6 {[%clk 0:02:52.3]} 3. f3 {[%clk 0:03:00.3]} 3... Bg7 {[%clk 0:02:51.9]}
4. e4 {[%clk 0:03:00.1]} 4... d6 {[%clk 0:02:52]} 5. Ne2 {[%clk 0:03:00.5]} 5...
O-O {[%clk 0:02:50]} 6. Be3 {[%clk 0:03:00.4]} 6... e5 {[%clk 0:02:49.7]} 7. Qd2
{[%clk 0:03:00.6]} 7... c6 {[%clk 0:02:46.6]} 8. d5 {[%clk 0:02:56.2]} 8... cxd5
{[%clk 0:02:44.9]} 9. cxd5 {[%clk 0:02:57.1]} 9... a6 {[%clk 0:02:42.9]} 10. Ng3
{[%clk 0:02:52.2]} 10... h5 {[%clk 0:02:41]} 11. Bd3 {[%clk 0:02:48.6]} 11... h4
{[%clk 0:02:37]} 12. Ne2 {[%clk 0:02:48.4]} 12... Nbd7 {[%clk 0:02:33.4]} 13.
O-O {[%clk 0:02:45.3]} 13... Nh5 {[%clk 0:02:30.3]} 14. Nbc3 {[%clk 0:02:39]}
14... b5 {[%clk 0:02:26.7]} 15. a3 {[%clk 0:02:37]} 15... f5 {[%clk 0:02:23.3]}
16. exf5 {[%clk 0:02:31.9]} 16... gxf5 {[%clk 0:02:22.8]} 17. Bg5 {[%clk
0:02:32.3]} 17... Bf6 {[%clk 0:02:22.7]} 18. Bh6 {[%clk 0:02:29]} 18... Bg7
{[%clk 0:02:22.3]} 19. Bg5 {[%clk 0:02:26]} 19... Qb6+ {[%clk 0:02:19.4]} 20.
Kh1 {[%clk 0:02:16.8]} 20... h3 {[%clk 0:02:19.3]} 21. gxh3 {[%clk 0:02:15.6]}
21... Nc5 {[%clk 0:02:14.1]} 22. Bc2 {[%clk 0:02:08.7]} 22... b4 {[%clk
0:02:01]} 23. axb4 {[%clk 0:02:03.8]} 23... Qxb4 {[%clk 0:02:01]} 24. Bh6 {[%clk
0:01:56]} 24... Qh4 {[%clk 0:01:48]} 25. Bxg7 {[%clk 0:01:46]} 25... Nxg7 {[%clk
0:01:45.9]} 26. Rg1 {[%clk 0:01:46.4]} 26... Ra7 {[%clk 0:01:40.2]} 27. b4
{[%clk 0:01:16]} 27... Qxb4 {[%clk 0:01:37]} 28. Qh6 {[%clk 0:01:12.7]} 28... e4
{[%clk 0:01:11.3]} 29. Rab1 {[%clk 0:00:50.1]} 29... Qc4 {[%clk 0:01:10.4]} 30.
Rg3 {[%clk 0:00:27.1]} 30... Nd3 {[%clk 0:00:56.9]} 31. Bxd3 {[%clk 0:00:22.2]}
31... exd3 {[%clk 0:00:56.7]} 32. Rbg1 {[%clk 0:00:20.6]} 32... Rff7 {[%clk
0:00:57.1]} 33. Nf4 {[%clk 0:00:08.3]} 33... Qxc3 {[%clk 0:00:56.4]} 34. Nh5
{[%clk 0:00:08.5]} 34... d2 {[%clk 0:00:52.4]} 35. Qxd6 {[%clk 0:00:08.6]} 35...
Rad7 {[%clk 0:00:45]} 36. Qh6 {[%clk 0:00:04.1]} 36... f4 {[%clk 0:00:40.1]} 37.
R3g2 {[%clk 0:00:03.8]} 37... Qxf3 {[%clk 0:00:38.4]} 38. Nf6+ {[%clk
0:00:03.3]} 38... Rxf6 {[%clk 0:00:37.9]} 39. Qxf6 {[%clk 0:00:03.5]} 39... d1=Q
{[%clk 0:00:36.3]} 40. Qe6+ {[%clk 0:00:04]} 40... Kf8 {[%clk 0:00:33.9]} 41.
Qf6+ {[%clk 0:00:03.1]} 41... Ke8 {[%clk 0:00:34.1]} 42. Qg6+ {[%clk 0:00:02.4]}
42... Rf7 {[%clk 0:00:33.6]} 43. Rxd1 {[%clk 0:00:02.6]} 43... Qxd1+ {[%clk
0:00:33.2]} 44. Rg1 {[%clk 0:00:03.5]} 44... Qxd5+ {[%clk 0:00:33.6]} 45. Rg2
{[%clk 0:00:03.1]} 45... Qd1+ {[%clk 0:00:33.9]} 46. Rg1 {[%clk 0:00:03.2]}
46... Bb7+ {[%clk 0:00:34.4]} 0-1

[Event "*** SCC Grand Prix: Titled Tuesday Blitz"]
[Site "Chess.com"]
[Date "2020.08.25"]
[Round "5"]
[White "Schandenfreude"]
[Black "ZverevLev"]
[Result "1-0"]
[WhiteElo "2502"]
[BlackElo "2352"]
[TimeControl "180+1"]
[EndTime "10:57:46 PDT"]
[Termination "Schandenfreude won by resignation"]

1. d4 {[%clk 0:03:00]} 1... Nf6 {[%clk 0:02:59.4]} 2. Nf3 {[%clk 0:02:55.4]}
2... e6 {[%clk 0:02:59.3]} 3. Bf4 {[%clk 0:02:48.6]} 3... d5 {[%clk 0:02:58.8]}
4. e3 {[%clk 0:02:48.8]} 4... Bd6 {[%clk 0:02:57.8]} 5. Bg3 {[%clk 0:02:48.2]}
5... c5 {[%clk 0:02:55.1]} 6. c3 {[%clk 0:02:47.8]} 6... Qc7 {[%clk 0:02:54]} 7.
Nbd2 {[%clk 0:02:45]} 7... Nbd7 {[%clk 0:02:53.4]} 8. Bd3 {[%clk 0:02:35.5]}
8... O-O {[%clk 0:02:51.3]} 9. O-O {[%clk 0:02:35.1]} 9... Bxg3 {[%clk
0:02:49.8]} 10. hxg3 {[%clk 0:02:35.1]} 10... e5 {[%clk 0:02:50.7]} 11. dxe5
{[%clk 0:02:35.6]} 11... Nxe5 {[%clk 0:02:49]} 12. Nxe5 {[%clk 0:02:32.7]} 12...
Qxe5 {[%clk 0:02:49.9]} 13. Re1 {[%clk 0:02:25.7]} 13... h6 {[%clk 0:02:42]} 14.
Be2 {[%clk 0:02:17.7]} 14... Be6 {[%clk 0:02:37.4]} 15. Bf3 {[%clk 0:02:17]}
15... Rad8 {[%clk 0:02:28.6]} 16. Qa4 {[%clk 0:02:16.2]} 16... a6 {[%clk
0:02:16]} 17. Rad1 {[%clk 0:02:15.1]} 17... Bd7 {[%clk 0:01:59.7]} 18. Qf4
{[%clk 0:02:12.3]} 18... Qe7 {[%clk 0:01:56.3]} 19. e4 {[%clk 0:01:57.8]} 19...
dxe4 {[%clk 0:01:54.5]} 20. Nxe4 {[%clk 0:01:57.7]} 20... Nxe4 {[%clk
0:01:50.8]} 21. Bxe4 {[%clk 0:01:48.3]} 21... Qg5 {[%clk 0:01:48.7]} 22. Qxg5
{[%clk 0:01:35.9]} 22... hxg5 {[%clk 0:01:49.6]} 23. Bxb7 {[%clk 0:01:36.3]}
23... Bg4 {[%clk 0:01:47.8]} 24. Bf3 {[%clk 0:01:21.6]} 24... Bxf3 {[%clk
0:01:39.4]} 25. gxf3 {[%clk 0:01:21.5]} 25... Rb8 {[%clk 0:01:39.8]} 26. Rd2
{[%clk 0:01:14.3]} 26... f6 {[%clk 0:01:37.4]} 27. Re6 {[%clk 0:01:12]} 27... a5
{[%clk 0:01:36.4]} 28. Ra6 {[%clk 0:01:12]} 28... Ra8 {[%clk 0:01:32.1]} 29.
Rxa8 {[%clk 0:01:09.2]} 29... Rxa8 {[%clk 0:01:31.9]} 30. Kf1 {[%clk 0:01:02.8]}
30... Rb8 {[%clk 0:01:30.6]} 31. Ke1 {[%clk 0:00:59.8]} 31... Kf7 {[%clk
0:01:29.6]} 32. Kd1 {[%clk 0:00:56.6]} 32... Ke6 {[%clk 0:01:27.1]} 33. Kc2
{[%clk 0:00:56]} 33... g6 {[%clk 0:01:21.9]} 34. b3 {[%clk 0:00:46.5]} 34... f5
{[%clk 0:01:14.6]} 35. c4 {[%clk 0:00:41.5]} 35... Ra8 {[%clk 0:01:05.4]} 36.
Kc3 {[%clk 0:00:40]} 36... Rb8 {[%clk 0:00:58.5]} 37. a3 {[%clk 0:00:37.4]}
37... Rh8 {[%clk 0:00:49.5]} 38. b4 {[%clk 0:00:27.1]} 38... axb4+ {[%clk
0:00:47.3]} 39. axb4 {[%clk 0:00:28]} 39... cxb4+ {[%clk 0:00:47]} 40. Kxb4
{[%clk 0:00:28.9]} 40... Rb8+ {[%clk 0:00:46.4]} 41. Kc3 {[%clk 0:00:28.6]}
41... Ra8 {[%clk 0:00:46.1]} 42. c5 {[%clk 0:00:22.8]} 42... Ra3+ {[%clk
0:00:45.7]} 43. Kb4 {[%clk 0:00:20.1]} 43... Ra8 {[%clk 0:00:39.8]} 44. c6
{[%clk 0:00:17.9]} 44... Ra1 {[%clk 0:00:39.6]} 45. Kc5 {[%clk 0:00:15.6]} 45...
Rb1 {[%clk 0:00:36]} 46. c7 {[%clk 0:00:13.4]} 46... Ke7 {[%clk 0:00:35.9]} 47.
Kc6 {[%clk 0:00:12.4]} 47... Rc1+ {[%clk 0:00:35.2]} 48. Kb7 {[%clk 0:00:12.8]}
48... Rb1+ {[%clk 0:00:35]} 49. Kc8 {[%clk 0:00:13.3]} 49... Rc1 {[%clk
0:00:34.5]} 50. Rd7+ {[%clk 0:00:12.6]} 50... Ke8 {[%clk 0:00:33]} 51. Rg7
{[%clk 0:00:12.2]} 1-0

[Event "*** SCC Grand Prix: Titled Tuesday Blitz"]
[Site "Chess.com"]
[Date "2020.08.25"]
[Round "5"]
[White "alexrustemov"]
[Black "Annagozel"]
[Result "1-0"]
[WhiteElo "2632"]
[BlackElo "1854"]
[TimeControl "180+1"]
[EndTime "10:57:46 PDT"]
[Termination "alexrustemov won on time"]

1. d4 {[%clk 0:03:00.9]} 1... d5 {[%clk 0:02:58.7]} 2. c4 {[%clk 0:03:00.1]}
2... e6 {[%clk 0:02:58]} 3. Nc3 {[%clk 0:02:59.2]} 3... Nf6 {[%clk 0:02:58]} 4.
cxd5 {[%clk 0:02:58.2]} 4... exd5 {[%clk 0:02:57.2]} 5. Bg5 {[%clk 0:02:57.5]}
5... Be7 {[%clk 0:02:56]} 6. e3 {[%clk 0:02:56.9]} 6... O-O {[%clk 0:02:52.9]}
7. Bd3 {[%clk 0:02:56.2]} 7... b6 {[%clk 0:02:51.9]} 8. Bxf6 {[%clk 0:02:43.8]}
8... Bxf6 {[%clk 0:02:48.1]} 9. Qh5 {[%clk 0:02:43.9]} 9... g6 {[%clk
0:02:46.2]} 10. Qxd5 {[%clk 0:02:43.3]} 10... c6 {[%clk 0:02:31.3]} 11. Qxd8
{[%clk 0:02:41.6]} 11... Rxd8 {[%clk 0:02:30.1]} 12. Nf3 {[%clk 0:02:37.5]}
12... Bb7 {[%clk 0:02:29.4]} 13. Rd1 {[%clk 0:02:32.8]} 13... Na6 {[%clk
0:02:22.8]} 14. O-O {[%clk 0:02:31.5]} 14... Nb4 {[%clk 0:02:21.6]} 15. Be4
{[%clk 0:02:28.5]} 15... Nd5 {[%clk 0:02:04]} 16. Nxd5 {[%clk 0:02:15.9]} 16...
cxd5 {[%clk 0:02:03.1]} 17. Bd3 {[%clk 0:02:16.8]} 17... Rac8 {[%clk 0:01:51.9]}
18. Rc1 {[%clk 0:02:16]} 18... Be7 {[%clk 0:01:49.8]} 19. Rfd1 {[%clk 0:02:11]}
19... f6 {[%clk 0:01:47.3]} 20. Kf1 {[%clk 0:02:09.6]} 20... Kf7 {[%clk
0:01:46.2]} 21. Ke2 {[%clk 0:02:09.3]} 21... Ke6 {[%clk 0:01:43.4]} 22. g4
{[%clk 0:01:56.4]} 22... Kd6 {[%clk 0:01:35.3]} 23. h3 {[%clk 0:01:54.7]} 23...
Rd7 {[%clk 0:01:21.2]} 24. Rxc8 {[%clk 0:01:52.2]} 24... Bxc8 {[%clk 0:01:20.7]}
25. Rg1 {[%clk 0:01:45.6]} 25... Rc7 {[%clk 0:01:18.2]} 26. h4 {[%clk
0:01:45.3]} 26... Be6 {[%clk 0:01:08.3]} 27. h5 {[%clk 0:01:44.1]} 27... Bf7
{[%clk 0:01:07.4]} 28. hxg6 {[%clk 0:01:42.6]} 28... hxg6 {[%clk 0:00:51.4]} 29.
g5 {[%clk 0:01:40.4]} 29... f5 {[%clk 0:00:41.7]} 30. Ne5 {[%clk 0:01:39.6]}
30... Be8 {[%clk 0:00:41.3]} 31. f4 {[%clk 0:01:35.6]} 31... Ke6 {[%clk
0:00:36.2]} 32. Rh1 {[%clk 0:01:34.9]} 32... Bd6 {[%clk 0:00:34.3]} 33. Rh8
{[%clk 0:01:30.4]} 33... Re7 {[%clk 0:00:29.7]} 34. Rh6 {[%clk 0:01:17.6]} 34...
Bxe5 {[%clk 0:00:27.8]} 35. dxe5 {[%clk 0:01:14.1]} 35... Kf7 {[%clk 0:00:23]}
36. Rh7+ {[%clk 0:01:12.3]} 36... Kf8 {[%clk 0:00:21.9]} 37. Rh8+ {[%clk
0:01:02.9]} 37... Kg7 {[%clk 0:00:21.2]} 38. Rh1 {[%clk 0:00:59.6]} 38... Rc7
{[%clk 0:00:20.3]} 39. Kd2 {[%clk 0:00:58.9]} 39... Rc5 {[%clk 0:00:19.2]} 40.
b4 {[%clk 0:00:57.3]} 40... Rc7 {[%clk 0:00:13.2]} 41. a3 {[%clk 0:00:52.8]}
41... a5 {[%clk 0:00:11.7]} 42. bxa5 {[%clk 0:00:51.2]} 42... bxa5 {[%clk
0:00:11.3]} 43. Rb1 {[%clk 0:00:51.8]} 43... Kf7 {[%clk 0:00:06.6]} 44. Rb6
{[%clk 0:00:50]} 44... Rc6 {[%clk 0:00:04.4]} 45. Rxc6 {[%clk 0:00:48.1]} 45...
Bxc6 {[%clk 0:00:03.6]} 46. Kc3 {[%clk 0:00:48.7]} 46... Ba4 {[%clk 0:00:03.1]}
47. Kd4 {[%clk 0:00:48.9]} 47... Ke6 {[%clk 0:00:03.6]} 48. Kc5 {[%clk
0:00:48.8]} 48... Bb3 {[%clk 0:00:02.9]} 49. Bb5 {[%clk 0:00:48.5]} 49... a4
{[%clk 0:00:02.2]} 50. Be8 {[%clk 0:00:48.1]} 1-0